[Event "Coimbra Queima Fitas Open 2024"]
[Site "Coimbra"]
[Date "2024.04.25"]
[Round "2.3"]
[White "Faryma, Maksym"]
[Black "Serarols Mabras, Bernat"]
[Result "1/2-1/2"]
[ECO "B13"]
[WhiteElo "1863"]
[BlackElo "2361"]
[Annotator "TA"]
[PlyCount "173"]
[EventDate "2024.04.23"]
[EventType "swiss"]
[EventCountry "POR"]
[SourceTitle "playchess.com"]
[Source "ChessBase"]
[SourceQuality "1"]
[TimeControl "5400+30"]

{[%evp 42,173,0,0,0,0,35,10,9,0,0,0,0,0,10,0,10,6,6,6,6,-5,0,0,0,0,13,0,0,0,0,0,0,0,0,0,0,0,0,-1,28,18,28,0,0,-16,-11,-285,-273,-611,-106,-97,-104,-106,-122,-119,-76,-119,-116,-133,-121,-98,-99,-116,-96,-100,-68,-122,-52,-47,-46,-159,-42,-40,-41,-132,-119,-211,-182,-328,-113,-93,-26,-175,-152,-184,-33,-36,-26,-57,-56,-141,-74,-283,-218,-227,-20,-20,-20,-166,-20,-20,-20,-20,-20,-20,-20,-20,-18,-18,-9,-9,-9,-9,-9,-9,-9,-9,-9,-9,-9,-9,0,0,0,0,0,0,0,0,0,0,8,8]} 1. e4 {[%emt 0:00:02]} c6 {[%emt 0:05:55]} 2. d4 {[%emt 0:00:12]} d5 {[%emt 0:00:03]} 3. exd5 {[%emt 0:00:27]} cxd5 {[%emt 0:00:03]} 4. Nf3 {[%emt 0:00:11]} Nc6 {[%emt 0:00:04]} 5. c3 {[%emt 0:00:10]} Bg4 {[%emt 0:01:49]} 6. Bd3 {[%emt 0:00:54]} e6 $1 {[%emt 0:01:52] 6...e6 scores better than 6...Nf6.} 7. h3 {[%emt 0:01:06] B13: Caro-Kann: Exchange Variation and Panov-Botvinnik Attack.} Bh5 {[%emt 0:00:20]} 8. g4 {[%emt 0:01:17]} Bg6 {[%emt 0:00:08]} 9. Qe2 $146 {[%emt 0:00:34]} ({Predecessor:} 9. Bf4 Bd6 10. Bxd6 Qxd6 11. Nh4 Bxd3 12. Qxd3 Nge7 13. Nd2 O-O 14. Ndf3 e5 15. dxe5 Nxe5 16. Nxe5 Qxe5+ {0-1 Flores Barrera,A (1573)-Vilela de Acuna,J (2329) Gran Canaria Online Blitz 3rd 2022 (7)}) 9... Bd6 {[%emt 0:03:05]} 10. Bg5 {[%emt 0:01:24]} Nge7 {[%emt 0:06:04]} 11. Bxe7 {[%emt 0:10:52]} Qxe7 {[%emt 0:03:56]} 12. Nbd2 {[%emt 0:00:46]} Bf4 {[%emt 0:10:46]} 13. Bxg6 {[%emt 0:04:17]} hxg6 {[%emt 0:00:12]} 14. Ne5 {[%emt 0:00:08]} Bxe5 {[%emt 0:10:48]} 15. dxe5 {[%emt 0:00:42]} Qg5 {[%emt 0:00:14]} 16. Nf3 Qf4 {[%emt 0:09:57]} 17. Rd1 {[%emt 0:05:05]} O-O-O {[%emt 0:03:07]} 18. Kf1 {[%emt 0:05:22]} Kb8 {[%emt 0:06:52]} 19. Kg2 {[%emt 0:02:15]} Rde8 {[%emt 0:00:17]} 20. Qd2 {[%emt 0:01:52]} Qxd2 {[%emt 0:00:52]} 21. Rxd2 {[%emt 0:00:07]} Re7 {[%emt 0:00:29]} 22. Re1 {[%emt 0:01:29]} Rc8 {[%emt 0:00:20]} 23. Nd4 {[%emt 0:23:48]} Na5 {[%emt 0:01:49]} 24. Ree2 {[%emt 0:03:47]} a6 {[%emt 0:00:24]} 25. Rc2 {[%emt 0:01:40]} Rc4 {[%emt 0:01:35]} 26. Rcd2 {[%emt 0:00:42]} b5 {[%emt 0:01:31]} 27. a3 {[%emt 0:03:06]} Rc8 {[%emt 0:00:25]} 28. Rd1 {[%emt 0:00:43]} Nb7 {[%emt 0:00:46]} 29. Kg3 {[%emt 0:01:44]} Nc5 {[%emt 0:00:09]} 30. f3 {[%emt 0:00:07]} Rb7 {[%emt 0:00:33]} 31. Nc2 {[%emt 0:01:48]} Kc7 {[%emt 0:02:51]} 32. h4 {[%emt 0:00:43]} Kd7 {[%emt 0:01:29]} 33. Rh2 {[%emt 0:02:39]} Ke7 {[%emt 0:03:31]} 34. Re2 {[%emt 0:01:06]} a5 {[%emt 0:00:34]} 35. Kg2 {[%emt 0:02:03]} Na4 {[%emt 0:01:50]} 36. Rb1 {[%emt 0:00:38]} Rb6 {[%emt 0:00:57]} 37. Kg3 {[%emt 0:00:47]} Rc7 {[%emt 0:00:12]} 38. Kg2 {[%emt 0:00:53]} Nc5 {[%emt 0:00:56]} 39. Rd1 {[%emt 0:00:16]} Nd7 {[%emt 0:00:14]} 40. Rde1 {[%emt 0:00:44]} f6 {[%emt 0:00:37]} 41. exf6+ {[%emt 0:01:25]} gxf6 {[%emt 0:00:10]} 42. Ne3 {[%emt 0:02:38]} Kf7 {[%emt 0:00:50]} 43. Nc2 {[%emt 0:01:10]} Ne5 {[%emt 0:01:01]} 44. Nd4 $2 {[%emt 0:02:39][%mdl 8192]} (44. Rd1 $11) 44... Nd3 $19 {[%emt 0:01:23]} 45. Rxe6 $2 {[%emt 0:00:26]} (45. Rd1 Nf4+ 46. Kg3 Nxe2+ 47. Nxe2) 45... Nxe1+ $2 {[%emt 0:00:07]} (45... Rxe6 $19 {has better winning chances.} 46. Rxe6 Nf4+ (46... Nxb2 47. Ra6 $14) 47. Kf2 Nxe6 48. Nxb5 Rc6) 46. Rxe1 $17 {[%emt 0:00:06]} b4 $1 {[%emt 0:00:29]} 47. axb4 {[%emt 0:00:08]} axb4 {[%emt 0:00:05]} 48. Re3 {[%emt 0:00:07]} Ra7 {[%emt 0:02:06]} 49. Kg3 {[%emt 0:00:37]} Ra2 {[%emt 0:02:17]} 50. h5 {[%emt 0:02:07]} gxh5 {[%emt 0:05:36]} ({Don't play} 50... Rxb2 $6 51. hxg6+ Kxg6 52. Nf5 $11) 51. gxh5 {[%emt 0:00:05]} Rxb2 {[%emt 0:00:19]} 52. cxb4 {[%emt 0:00:14]} R2xb4 {[%emt 0:02:39]} 53. Nf5 {[%emt 0:00:20]} Re6 54. Ra3 {[%emt 0:00:54]} (54. Nh6+ $15 Ke7 55. Ng8+ (55. Nf5+ $2 Kd7 $19) 55... Kd6 56. Ra3) 54... Re5 {[%emt 0:07:02]} (54... Rb7 $1 $17 55. Ra8 Rd7) 55. Ra7+ $15 {[%emt 0:00:09]} Ke6 {[%emt 0:00:05]} 56. Ng7+ {[%emt 0:00:23]} Kd6 {[%emt 0:00:09]} 57. f4 $1 {[%emt 0:00:34]} Re1 {[%emt 0:00:25]} 58. Nf5+ {[%emt 0:00:16]} ({White should try} 58. h6 $15) 58... Kc5 $17 {[%emt 0:00:06]} 59. Rc7+ {[%emt 0:00:29]} (59. h6 $17 {was worth a try.}) 59... Kb6 $19 {[%emt 0:00:42]} 60. Rf7 {[%emt 0:00:11]} (60. Rc8 {might work better.}) 60... Rg1+ $2 {[%emt 0:00:51]} (60... Rb3+ $1 $19 {is more deadly.} 61. Kh4 Rh1+ 62. Kg4 Rg1+ 63. Kh4 Rf3 64. Rxf6+ Kc5) 61. Kh2 $17 {[%emt 0:00:29]} Rg8 {[%emt 0:00:51]} (61... Rgb1 $17 {aiming for ...d4.} 62. Rxf6+ Kc5) 62. Rxf6+ {[%emt 0:00:08]} (62. Ne7 $1 $11 Rb2+ 63. Kh3) 62... Kc5 $19 {[%emt 0:00:07]} 63. Ne7 {[%emt 0:01:08]} Rh8 $2 {[%emt 0:01:03]} (63... Rg7 $19 64. Ng6 Rb3) 64. Rf5 $1 $15 {[%emt 0:01:00]} Rd4 {[%emt 0:02:02]} 65. Kh3 {[%emt 0:00:36]} Rd1 {[%emt 0:00:06]} 66. Kg2 {[%emt 0:00:41] [#]} (66. Rg5 $15) 66... Kc4 {[%emt 0:00:21]} (66... Rd3 $142 $1 67. Re5 Rf8) 67. Kf2 $2 {[%emt 0:00:24]} (67. Ng6 $17 Rb8 68. Kg3) 67... d4 {[%emt 0:00:18]} 68. Ng6 {[%emt 0:00:37]} Rh7 $2 {[%emt 0:01:30]} ({Black should play} 68... Rc8 $19 {White must now prevent ...d3.} 69. Ne5+ Kc3) 69. Ne5+ $11 {[%emt 0:00:15]} Kc3 {[%emt 0:00:42]} 70. Nf3 {[%emt 0:00:08] [#]} (70. Rf8 $11 {and White stays safe.}) 70... d3 {[%emt 0:00:48]} (70... Rd7 $1 $19 {...d3 would now be deadly.} 71. h6 d3) 71. Rc5+ $11 {[%emt 0:00:07]} Kb4 {[%emt 0:00:06]} 72. Rd5 {[%emt 0:00:06]} Kc4 {[%emt 0:00:17]} 73. Rd8 {[%emt 0:00:09]} Rxh5 {[%emt 0:00:26]} 74. Ke3 {[%emt 0:00:21]} Rh3 {[%emt 0:01:24]} 75. Ke4 $1 {[%emt 0:00:25]} Kc5 {[%emt 0:01:32]} 76. f5 {[%emt 0:01:23]} Rh6 {[%emt 0:01:24]} 77. Rxd3 {[%emt 0:00:11]} Rxd3 {[%emt 0:00:06]} 78. Kxd3 {[%emt 0:00:06]} Kd5 {[%emt 0:00:01]} 79. Ke3 {[%emt 0:00:17]} Kd6 {[%emt 0:00:14]} 80. Kf4 {[%emt 0:00:07]} Ke7 {[%emt 0:00:05]} 81. Ng5 {[%emt 0:00:26]} Rh4+ {[%emt 0:00:10]} 82. Ke5 {[%emt 0:00:05]} Rh1 {[%emt 0:00:25]} 83. f6+ {[%emt 0:00:09]} Kf8 {[%emt 0:00:43]} 84. Ke6 {[%emt 0:00:10]} Re1+ {[%emt 0:00:09]} 85. Kf5 {[%emt 0:00:07]} Rf1+ {[%emt 0:00:08]} 86. Kg6 {[%emt 0:00:21]} Rxf6+ {[%emt 0:00:05]} 87. Kxf6 {[%emt 0:00:03]} 1/2-1/2

[Event "Coimbra Queima Fitas Open 2024"]
[Site "Coimbra"]
[Date "2024.04.25"]
[Round "2.4"]
[White "Martins, Bruno Andre Leite"]
[Black "Valente, Sofia Moreira Lopes "]
[Result "1-0"]
[ECO "B38"]
[WhiteElo "2360"]
[BlackElo "1854"]
[Annotator "TA"]
[PlyCount "75"]
[EventDate "2024.04.23"]
[EventType "swiss"]
[EventCountry "POR"]
[SourceTitle "playchess.com"]
[Source "ChessBase"]
[SourceQuality "1"]
[TimeControl "5400+30"]

{[%evp 21,75,30,32,33,30,29,31,34,47,37,82,58,66,54,106,118,112,111,160,154,179,183,180,178,153,155,186,175,159,130,137,137,394,344,394,325,622,641,614,636,600,603,858,877,776,655,1009,768,950,922,987,950,1106,1126,1734,1632]} 1. e4 {[%emt 0:07:12]} c5 {[%emt 0:00:10]} 2. Nf3 {[%emt 0:00:11]} Nc6 {[%emt 0:00:07]} 3. d4 {[%emt 0:01:03]} cxd4 {[%emt 0:00:20]} 4. Nxd4 {[%emt 0:00:09]} g6 {[%emt 0:00:39]} 5. c4 {[%emt 0:00:21]} Bg7 {[%emt 0:00:17]} 6. Be3 {[%emt 0:00:15]} Nf6 {[%emt 0:00:28]} 7. Nc3 {[%emt 0:00:07]} O-O {[%emt 0:00:18]} 8. Be2 {[%emt 0:01:19]} d6 {[%emt 0:00:17]} 9. O-O {[%emt 0:01:56]} Bd7 {[%emt 0:00:45]} 10. h3 {[%emt 0:00:32]} Nxd4 {[%emt 0:02:26]} 11. Bxd4 {[%emt 0:00:07]} Bc6 {[%emt 0:00:27]} 12. Qc2 {[%emt 0:00:10]} a5 {[%emt 0:00:26]} 13. Rad1 {[%emt 0:01:02]} Qc7 {[%emt 0:04:15]} 14. b3 {[%emt 0:10:44] White is slightly better.} Rfb8 {[%emt 0:03:32]} 15. Qd3 {[%emt 0:07:04]} b6 {[%emt 0:05:00]} 16. h4 {[%emt 0:05:26]} Qb7 {[%emt 0:15:52]} 17. Nd5 {[%emt 0:02:18]} Nxd5 {[%emt 0:05:12]} ({Better is} 17... e5 $14 18. Be3 (18. Bxb6 $2 Bxd5 19. exd5 Qxb6 $19) 18... Bxd5 19. cxd5 Nd7) 18. exd5 $16 {[%emt 0:00:32]} Bd7 {[%emt 0:00:33]} 19. h5 {[%emt 0:03:23]} Bf5 {[%emt 0:03:29]} ({Black should try} 19... Bxd4 20. Qxd4 Qc8) 20. Qe3 {[%emt 0:04:46]} gxh5 {[%emt 0:02:32]} 21. Qg3 {[%emt 0:05:20][%csl Gd4][%cal Rg3g7]} Bg6 {[%emt 0:00:31] [#]} 22. Bxg7 $1 {[%emt 0:05:11]} Kxg7 {[%emt 0:00:08][%cal Bg8g7,Bg7f8,Bf8e7,Be7d7][%mdl 32]} 23. f4 {[%emt 0:00:16][%cal Of4f5] White has more active pieces.} f5 {[%emt 0:02:58]} 24. Bxh5 {[%emt 0:01:29] Threatens to win with Rfe1.} Rf8 {[%emt 0:01:47]} 25. Rfe1 {[%emt 0:03:29] aiming for Bxg6.} Rf6 {[%emt 0:01:10]} 26. Re3 $36 {[%emt 0:01:42][%mdl 2048] [#] Rde1 would now be deadly. White is in control.} Rh8 $2 {[%emt 0:02:07][%mdl 8192] Loses the game.} (26... Raf8 $16 27. Rde1 R8f7) 27. Rde1 $18 {[%emt 0:00:49]} Kf8 {[%emt 0:01:50]} 28. Bxg6 {[%emt 0:07:07]} hxg6 $2 {[%emt 0:00:52]} (28... Rxg6 29. Qh3 Rhg8 30. Qxf5+ Ke8 31. Rxe7+ Qxe7 32. Qc8+ (32. Rxe7+ Kxe7 33. Kf1 h6 $18) 32... Kf7 33. Qf5+ (33. Rxe7+ Kxe7 34. Qc7+ Kf8 $18) 33... Ke8 (33... Qf6 34. Qd7+ Kf8 35. Re8#) 34. Qc8+ (34. Rxe7+ Kxe7 35. Kf1 Kd8 $18) 34... Kf7 35. Rxe7+ Kxe7 36. Qc7+ Kf8) 29. Rxe7 {[%emt 0:02:28] White is clearly winning.} Qxe7 {[%emt 0:01:41]} 30. Rxe7 {[%emt 0:00:08]} Kxe7 {[%emt 0:00:03][%mdl 4096] Endgame. KQ-KRR} 31. Qe3+ {[%emt 0:00:08]} Kd7 {[%emt 0:01:04]} 32. Qxb6 {[%emt 0:00:06]} Rc8 {[%emt 0:01:32]} 33. Qxa5 {[%emt 0:00:48]} Rc7 {[%emt 0:00:43]} 34. Qb5+ {[%emt 0:01:23]} Ke7 {[%emt 0:00:17]} 35. Qb6 {[%emt 0:01:19]} Rd7 {[%emt 0:00:23]} 36. b4 {[%emt 0:00:58]} Rf8 {[%emt 0:00:31]} 37. c5 {[%emt 0:01:23]} Rdd8 {[%emt 0:01:09]} 38. Qc7+ {[%emt 0:00:34] Weighted Error Value: White=0.18 (very precise) /Black=0.62.  Loses game:     	---       	Black=1      Mistake:       	---       	Black=3      Inaccurate:     	---       	Black=1      OK:         	White=5     	Black=7      Best:        	White=2     	Black=1} 1-0

[Event "Coimbra Queima Fitas Open 2024"]
[Site "Coimbra"]
[Date "2024.04.25"]
[Round "2.5"]
[White "Costa, Goncalo Martins Paul"]
[Black "Martin Duque, Jesus"]
[Result "0-1"]
[ECO "A45"]
[WhiteElo "1855"]
[BlackElo "2336"]
[Annotator "TA"]
[PlyCount "70"]
[EventDate "2024.04.23"]
[EventType "swiss"]
[EventCountry "POR"]
[SourceTitle "playchess.com"]
[Source "ChessBase"]
[SourceQuality "1"]
[TimeControl "5400+30"]

{[%evp 9,70,-20,-11,-8,-6,-10,-6,-19,-25,-14,0,-22,-21,-32,-19,-30,-33,-28,-27,-33,-24,-32,-22,-14,-19,-20,-18,-18,-16,-60,-44,-48,-47,-63,26,3,11,0,0,0,0,0,30,0,45,-394,-12,-17,-14,-16,0,0,0,-393,-403,-775,-301,-291,-302,-29987,-29988,-29982,-29983]} 1. d4 {[%emt 0:00:20]} Nf6 {[%emt 0:06:04]} 2. Bf4 {[%emt 0:00:28]} b6 {[%emt 0:00:18]} 3. Nf3 {[%emt 0:01:19]} Bb7 {[%emt 0:00:40]} 4. Nc3 {[%emt 0:00:44]} e6 {[%emt 0:02:07]} 5. e3 {[%emt 0:02:20]} a6 {[%emt 0:00:41]} 6. a3 {[%emt 0:02:02]} Be7 {[%emt 0:00:02]} 7. h3 {[%emt 0:02:33]} O-O {[%emt 0:00:21]} 8. Bd3 {[%emt 0:00:53] The position is equal.} c5 {[%emt 0:00:25]} 9. O-O {[%emt 0:01:56]} d6 {[%emt 0:02:03]} 10. Re1 {[%emt 0:02:25]} Nbd7 {[%emt 0:00:52]} 11. Bh2 {[%emt 0:01:24]} Re8 {[%emt 0:01:04]} 12. e4 {[%emt 0:06:17]} cxd4 {[%emt 0:04:49]} 13. Nxd4 {[%emt 0:00:11]} Bf8 {[%emt 0:01:24]} 14. Nf3 {[%emt 0:09:21]} Qc7 {[%emt 0:02:46]} 15. Qe2 {[%emt 0:06:50]} Ne5 {[%emt 0:01:53]} 16. Nxe5 {[%emt 0:03:32]} dxe5 {[%emt 0:02:33]} 17. Qd2 {[%emt 0:05:40]} Red8 {[%emt 0:04:36]} 18. Kh1 {[%emt 0:06:11]} Nh5 {[%emt 0:04:52]} 19. Qg5 {[%emt 0:04:15]} (19. f3 {simplifies} Bd6 20. Red1 Nf4 21. Bg1) 19... Nf4 {[%emt 0:00:42]} 20. Bxf4 {[%emt 0:00:21]} exf4 {[%emt 0:00:04]} 21. e5 {[%emt 0:00:21]} h6 {[%emt 0:04:36]} (21... f3 $15 22. gxf3 Bxf3+ 23. Kg1 Bc6) 22. Qxf4 $11 {[%emt 0:01:29]} f5 {[%emt 0:00:21]} 23. Qc4 {[%emt 0:03:30]} Qf7 {[%emt 0:02:52]} 24. Rad1 {[%emt 0:06:32]} Bc5 {[%emt 0:04:49]} 25. Qh4 {[%emt 0:03:42]} Rd4 {[%emt 0:03:57]} 26. f4 {[%emt 0:02:04]} Rad8 {[%emt 0:08:06]} 27. Bf1 $2 {[%emt 0:01:58][%mdl 8192] [#]} (27. b4 $1 $14 {stays ahead.} Bf8 28. Qg3) 27... Kh7 $2 {[%emt 0:03:45]} ({Black should try} 27... Rxd1 $19 28. Nxd1 (28. Rxd1 $2 {perishes.} Rxd1 29. Nxd1 Qd7 $19) 28... Rd2) 28. Rxd4 {[%emt 0:03:18]} Rxd4 {[%emt 0:00:08]} 29. Qg3 {[%emt 0:01:06]} Rd2 $36 {[%emt 0:01:51][%mdl 2048] Black has the initiative.} 30. Re2 {[%emt 0:00:24] Prevents Bf2.} Qd7 {[%emt 0:00:18]} 31. Rxd2 {[%emt 0:09:59][%mdl 8192]} (31. b4 $1 $11 {and White has nothing to worry.} Be7 32. Kh2) 31... Qxd2 $19 {[%emt 0:02:47]} 32. b4 {[%emt 0:05:57]} (32. Be2 $142) 32... Bf2 $2 {[%emt 0:01:14]} (32... Be3 33. Ne2 Qd1 34. Qxe3 Qxf1+ 35. Qg1 Qxe2) 33. Qd3 {[%emt 0:00:41]} Qxf4 {[%emt 0:00:10][%cal Of2d4] Strongly threatening ...Bd4!} 34. Qe2 $2 {[%emt 0:01:17] [#]} (34. Ne2 $19 Qxe5 35. c3) 34... Qg3 {[%emt 0:00:53][%csl LRc3,LRh3][%cal Rg3h3]} 35. Qd3 {[%emt 0:01:13]} Be3 {[%emt 0:00:09] Weighted Error Value: White=0.75/Black=0.54.  Loses game:     	White=2     	---        Missed win:     	---       	Black=1      Mistake:       	White=2     	Black=2      Inaccurate:     	White=2     	Black=2      OK:         	White=8     	Black=8      Best:        	White=2     	Black=1} 0-1

[Event "Coimbra Queima Fitas Open 2024"]
[Site "Coimbra"]
[Date "2024.04.25"]
[Round "2.6"]
[White "Grimm, Daniel"]
[Black "Povshednyy, Denis"]
[Result "1-0"]
[ECO "B00"]
[WhiteElo "2296"]
[BlackElo "1845"]
[Annotator "TA"]
[PlyCount "93"]
[EventDate "2024.04.23"]
[EventType "swiss"]
[EventCountry "POR"]
[SourceTitle "playchess.com"]
[Source "ChessBase"]
[SourceQuality "1"]
[TimeControl "5400+30"]

{[%evp 9,93,16,50,35,75,77,122,106,137,99,127,50,66,54,48,37,66,59,90,74,121,101,177,111,124,110,173,97,194,100,100,85,91,77,101,46,67,77,75,54,47,16,54,58,59,44,117,100,104,106,214,212,263,265,246,270,353,324,425,425,470,512,568,579,575,535,575,559,593,562,838,827,895,883,4778,1722,2430,4814,4810,4718,4132,869,869,862,919,860]} 1. e4 {[%emt 0:00:22]} Nc6 {[%emt 0:00:37]} 2. Nf3 {[%emt 0:00:49]} f5 {[%emt 0:00:46]} 3. e5 {[%emt 0:05:37]} e6 {[%emt 0:05:40]} 4. d4 {[%emt 0:02:20]} b6 {[%emt 0:03:08]} 5. c4 {[%emt 0:02:20]} Bb4+ {[%emt 0:04:30]} 6. Bd2 {[%emt 0:04:31]} Qe7 {[%emt 0:07:31]} 7. Nc3 {[%emt 0:02:42]} Bxc3 {[%emt 0:01:36]} 8. Bxc3 {[%emt 0:00:31] White is better.} (8. bxc3 Bb7 $14) 8... Bb7 {[%emt 0:01:00]} 9. Qd2 {[%emt 0:03:55]} O-O-O {[%emt 0:06:49]} 10. Qg5 {[%emt 0:13:49]} ({Of course not} 10. d5 $6 exd5 11. O-O-O (11. cxd5 Nxe5 12. Nxe5 d6 $11) 11... dxc4 $11) (10. b4 $16) 10... h6 $14 {[%emt 0:04:23]} 11. Qxe7 {[%emt 0:03:47]} Ngxe7 {[%emt 0:00:07]} 12. h4 {[%emt 0:00:10]} a5 {[%emt 0:05:14]} 13. a3 {[%emt 0:01:59]} Nb8 {[%emt 0:14:46]} 14. b4 {[%emt 0:04:44]} axb4 {[%emt 0:03:10]} (14... g5 $142) 15. axb4 $16 {[%emt 0:00:02]} d5 {[%emt 0:02:24]} (15... d6 $16) 16. exd6 {[%emt 0:02:14]} ({White should try} 16. c5 $1 $18) 16... cxd6 {[%emt 0:01:30]} 17. Be2 {[%emt 0:02:04]} Rhe8 {[%emt 0:08:40]} (17... Nd7 $16) 18. h5 {[%emt 0:03:02]} (18. O-O $1 $18) 18... Ng8 {[%emt 0:01:17]} (18... Nd7 $16 {was necessary.}) 19. Rd1 {[%emt 0:07:38]} (19. O-O $18) 19... Nf6 {[%emt 0:00:30]} 20. Kf1 {[%emt 0:09:39]} Ne4 {[%emt 0:01:54]} 21. Bb2 {[%emt 0:00:16]} Nd7 {[%emt 0:02:23][%cal Bb8d7,Bd7f6,Bf6e4][%mdl 32] [#]} 22. Nd2 {[%emt 0:04:53]} (22. d5 $1 $16) 22... Ndf6 {[%emt 0:01:24]} 23. Nxe4 {[%emt 0:00:24]} Nxe4 {[%emt 0:00:32]} 24. Rh3 {[%emt 0:01:19]} Kc7 {[%emt 0:02:19]} 25. f3 {[%emt 0:04:03]} Ng5 {[%emt 0:02:54]} 26. Rh1 {[%emt 0:00:38][%cal Bh3h1,Bh1c1,Bc1c7][%mdl 32]} Ra8 {[%emt 0:00:17]} 27. Kf2 {[%emt 0:02:06]} Ra2 {[%emt 0:01:01] [#] White now steadily converts the win.} ({Black should play} 27... Nh7 $14) 28. Rd2 $1 {[%emt 0:00:14]} Rea8 {[%emt 0:03:04]} 29. Rc1 {[%emt 0:01:39]} Kd7 {[%emt 0:02:43]} (29... R8a4 $16) 30. d5 $18 {[%emt 0:03:52]} exd5 {[%emt 0:01:45]} 31. cxd5 {[%emt 0:00:42]} Bxd5 {[%emt 0:01:51]} 32. Bb5+ {[%emt 0:01:27] This pair of bishops is nice.} ({And not} 32. Rxd5 Rxb2 33. Kf1 Rxb4 $15) 32... Ke6 {[%emt 0:01:24][%cal Bd7e6,Be6f6,Bf6e5][%mdl 32]} 33. Rc7 {[%emt 0:03:20] aiming for Re2+.} ({Much less strong is} 33. Re2+ Kf7 34. Rc7+ Kf8 35. Bxg7+ Kg8 $18) 33... Rxb2 {[%emt 0:01:25]} 34. Rxb2 {[%emt 0:00:43] White is clearly winning.} Kf6 {[%emt 0:02:02]} 35. Rd2 {[%emt 0:00:48]} Ra2 {[%emt 0:00:34]} 36. Rxa2 {[%emt 0:00:40]} Bxa2 {[%emt 0:00:02][%mdl 4096] Endgame. KRB-KBN} 37. Rc6 {[%emt 0:00:41]} Ke5 {[%emt 0:00:45]} 38. Rxb6 {[%emt 0:00:14]} Bf7 {[%emt 0:01:07]} 39. Be2 {[%emt 0:00:53]} f4 {[%emt 0:00:39]} 40. b5 {[%emt 0:03:29]} Bxh5 {[%emt 0:00:19]} 41. Rb8 {[%emt 0:00:06] b6 is the strong threat.} Ne6 {[%emt 0:01:23]} 42. b6 {[%emt 0:00:22] White wants to mate with Rc8.} Nc5 {[%emt 0:00:32]} 43. Rc8 {[%emt 0:00:22][%cal Oc8c5] White threatens Rxc5+! and mate.} Nb7 {[%emt 0:01:37]} 44. Rc7 {[%emt 0:00:33][%csl LRb7,LRg7]} Nd8 {[%emt 0:00:35]} 45. b7 {[%emt 0:01:12]} (45. Rd7 $142 Kd5 46. Rxd8) 45... Nxb7 {[%emt 0:00:04]} 46. Rxb7 {[%emt 0:00:05]} g5 {[%emt 0:00:31]} 47. Rh7 {[%emt 0:00:34] Weighted Error Value: White=0.18 (very precise) /Black=0.43.  Mistake:       	White=5     	Black=6      Inaccurate:     	White=1     	Black=8      OK:         	White=14    	Black=6      Strong:       	White=1     	---} 1-0

[Event "Coimbra Queima Fitas Open 2024"]
[Site "Coimbra"]
[Date "2024.04.25"]
[Round "2.7"]
[White "Ledas, Armandas"]
[Black "Iglesias Ferreira, Andres Agustin"]
[Result "1-0"]
[ECO "B23"]
[WhiteElo "1851"]
[BlackElo "2261"]
[Annotator "TA"]
[PlyCount "24"]
[EventDate "2024.04.23"]
[EventType "swiss"]
[EventCountry "POR"]
[SourceTitle "playchess.com"]
[Source "ChessBase"]
[SourceQuality "1"]
[TimeControl "5400+30"]

{[%evp 14,24,3,0,21,13,19,0,0,0,0,-29,-17]} 1. e4 {[%emt 0:00:04]} c5 {[%emt 0:00:26]} 2. Nc3 {[%emt 0:00:16]} d6 {[%emt 0:00:19]} 3. f4 {[%emt 0:00:25]} Nf6 {[%emt 0:00:49]} 4. Nf3 {[%emt 0:00:36]} g6 {[%emt 0:00:33]} 5. Bc4 {[%emt 0:00:47]} Bg7 {[%emt 0:01:01]} 6. O-O {[%emt 0:00:47][%cal Bh1f1,Bf1f3,Bf3h3][%mdl 32]} O-O {[%emt 0:00:10]} 7. d3 {[%emt 0:00:46]} Nc6 {[%emt 0:00:15]} 8. Qe1 {[%emt 0:00:30]} Bg4 {[%emt 0:00:44] [#]} 9. f5 $1 {[%emt 0:01:04]} Bxf3 {[%emt 0:01:12]} 10. Rxf3 {[%emt 0:00:14]} Nd4 {[%emt 0:04:33][%csl LRc2,LRf3][%cal Od4c2]} 11. Rh3 $1 {[%emt 0:00:45]} e6 {[%emt 0:02:24]} (11... gxf5 $2 12. Qh4 e6 13. Bg5 $18) 12. Qh4 {[%emt 0:06:52] Hoping for Bg5.} Nh5 $1 {[%emt 0:00:26][%mdl 32768] A rather calm draw.   Weighted Error Value: White=0.07 (flawless) /Black=0.04 (flawless) .  Inaccurate:     	White=1     	---        OK:         	White=1     	Black=3      Strong:       	White=1     	Black=1     . Loss on time!?} ({But not} 12... Nxc2 $6 13. fxe6 (13. Bg5 h6 $11) 13... fxe6 14. Bxe6+ Kh8 15. Bg5 $16) (12... exf5 $2 {perishes.} 13. Bg5 h6 14. Nd5 (14. Bxh6 Nh5 $14) 14... Nxd5 (14... hxg5 15. Nxf6+ Bxf6 16. Qh7#) (14... Ne2+ $2 15. Kh1 $18) 15. Bxd8 $18) 1-0